[Event "Late-Titled-Tuesday-Blitz-February-13-2024"]
[Site "Chess.com"]
[Date "2024.02.13"]
[Round "7"]
[White "kids2010"]
[Black "TigrVShlyape"]
[Result "0-1"]
[WhiteElo "2770"]
[BlackElo "2876"]
[TimeControl "180+1"]
[EndTime "15:18:59 PST"]
[Termination "TigrVShlyape won by resignation"]

1. e4 {[%clk 0:03:00.9]} 1... e5 {[%clk 0:02:57.3]} 2. Nf3 {[%clk 0:02:59.6]}
2... Nc6 {[%clk 0:02:53.7]} 3. Bc4 {[%clk 0:02:59.7]} 3... Nf6 {[%clk
0:02:53.2]} 4. d4 {[%clk 0:02:55.3]} 4... exd4 {[%clk 0:02:48.5]} 5. O-O {[%clk
0:02:55.2]} 5... d6 {[%clk 0:02:35.2]} 6. Nxd4 {[%clk 0:02:53.1]} 6... Be7
{[%clk 0:02:35.5]} 7. Nc3 {[%clk 0:02:52.8]} 7... O-O {[%clk 0:02:35.1]} 8. f3
{[%clk 0:02:48.4]} 8... Nxd4 {[%clk 0:02:34.5]} 9. Qxd4 {[%clk 0:02:48.4]} 9...
c6 {[%clk 0:02:34.3]} 10. Be3 {[%clk 0:02:48.3]} 10... Be6 {[%clk 0:02:27]} 11.
Rad1 {[%clk 0:02:42.2]} 11... Qa5 {[%clk 0:02:15]} 12. a3 {[%clk 0:02:29]} 12...
Rfd8 {[%clk 0:02:13.3]} 13. b4 {[%clk 0:02:16]} 13... Qc7 {[%clk 0:02:00.5]} 14.
Bxe6 {[%clk 0:02:04.5]} 14... fxe6 {[%clk 0:01:59]} 15. Bg5 {[%clk 0:01:56.9]}
15... h6 {[%clk 0:01:56.2]} 16. Bh4 {[%clk 0:01:56.5]} 16... Qb6 {[%clk
0:01:54.5]} 17. Bg3 {[%clk 0:01:49.2]} 17... Qxd4+ {[%clk 0:01:53.2]} 18. Rxd4
{[%clk 0:01:50.1]} 18... d5 {[%clk 0:01:53.4]} 19. e5 {[%clk 0:01:41.5]} 19...
Nd7 {[%clk 0:01:48.4]} 20. Rd3 {[%clk 0:01:25.7]} 20... a5 {[%clk 0:01:46.9]}
21. Rb1 {[%clk 0:01:22.1]} 21... axb4 {[%clk 0:01:41.8]} 22. axb4 {[%clk
0:01:23]} 22... Kf7 {[%clk 0:01:32.6]} 23. f4 {[%clk 0:01:22.1]} 23... g6 {[%clk
0:01:31.8]} 24. Bf2 {[%clk 0:01:21.8]} 24... g5 {[%clk 0:01:29.4]} 25. fxg5
{[%clk 0:01:14.5]} 25... hxg5 {[%clk 0:01:29.1]} 26. Bd4 {[%clk 0:01:13.2]}
26... Kg6 {[%clk 0:01:28.3]} 27. Rg3 {[%clk 0:01:06.4]} 27... Rh8 {[%clk
0:01:25.8]} 28. Ne2 {[%clk 0:00:56.9]} 28... Rh4 {[%clk 0:01:18.5]} 29. Rf1
{[%clk 0:00:55.7]} 29... Rf8 {[%clk 0:01:16.8]} 30. Rxf8 {[%clk 0:00:51.3]}
30... Bxf8 {[%clk 0:01:15.5]} 31. Be3 {[%clk 0:00:52]} 31... Be7 {[%clk
0:01:14.6]} 32. Nd4 {[%clk 0:00:47.6]} 32... Nxe5 {[%clk 0:01:00.2]} 33. Nxe6
{[%clk 0:00:47.5]} 33... Nf7 {[%clk 0:00:51.2]} 34. c3 {[%clk 0:00:43.4]} 34...
Re4 {[%clk 0:00:47.2]} 35. Nc5 {[%clk 0:00:36.2]} 35... Bxc5 {[%clk 0:00:42.4]}
36. Bxc5 {[%clk 0:00:37.1]} 36... Nd8 {[%clk 0:00:28.7]} 37. Be3 {[%clk
0:00:29.6]} 37... Ne6 {[%clk 0:00:28.7]} 38. Kf2 {[%clk 0:00:29.9]} 38... Rc4
{[%clk 0:00:27.7]} 39. Bd2 {[%clk 0:00:29.5]} 39... b6 {[%clk 0:00:26.4]} 40. h3
{[%clk 0:00:26.3]} 40... c5 {[%clk 0:00:25.2]} 41. bxc5 {[%clk 0:00:27.2]} 41...
bxc5 {[%clk 0:00:25.4]} 42. Re3 {[%clk 0:00:27.3]} 42... Kf6 {[%clk 0:00:24.1]}
43. Rf3+ {[%clk 0:00:27.8]} 43... Ke5 {[%clk 0:00:22.5]} 44. Rg3 {[%clk
0:00:27.2]} 44... Kf5 {[%clk 0:00:21.7]} 45. Rf3+ {[%clk 0:00:27.6]} 45... Kg6
{[%clk 0:00:19.1]} 46. Re3 {[%clk 0:00:26.8]} 46... Nf4 {[%clk 0:00:18.3]} 47.
Re8 {[%clk 0:00:24.4]} 47... d4 {[%clk 0:00:18.1]} 48. cxd4 {[%clk 0:00:23.3]}
48... Rc2 {[%clk 0:00:18]} 49. Ke1 {[%clk 0:00:20.8]} 49... cxd4 {[%clk
0:00:18.2]} 50. Bxf4 {[%clk 0:00:20.8]} 50... gxf4 {[%clk 0:00:17.8]} 51. Kf1
{[%clk 0:00:21]} 51... Kf5 {[%clk 0:00:17.4]} 52. Rd8 {[%clk 0:00:21.2]} 52...
Ke4 {[%clk 0:00:17.6]} 53. h4 {[%clk 0:00:21.2]} 53... d3 {[%clk 0:00:15.8]} 54.
Re8+ {[%clk 0:00:21]} 54... Kf5 {[%clk 0:00:15.6]} 55. Rd8 {[%clk 0:00:20]}
55... d2 {[%clk 0:00:15.7]} 56. Ke2 {[%clk 0:00:18.4]} 56... d1=Q+ {[%clk
0:00:15.9]} 57. Kxd1 {[%clk 0:00:18.8]} 57... Rxg2 {[%clk 0:00:16.2]} 58. Ke1
{[%clk 0:00:18.2]} 58... Rh2 {[%clk 0:00:16.3]} 59. Kf1 {[%clk 0:00:16.1]} 59...
Ke4 {[%clk 0:00:16.6]} 60. Ra8 {[%clk 0:00:15.3]} 60... Kf3 {[%clk 0:00:16.2]}
61. Ra3+ {[%clk 0:00:15.3]} 61... Kg4 {[%clk 0:00:16.5]} 62. Rb3 {[%clk
0:00:15.9]} 62... Rxh4 {[%clk 0:00:15.2]} 63. Kg1 {[%clk 0:00:16.3]} 63... Rh8
{[%clk 0:00:14.3]} 64. Ra3 {[%clk 0:00:16.6]} 64... Rb8 {[%clk 0:00:14.2]} 65.
Rc3 {[%clk 0:00:17.1]} 65... Rb2 {[%clk 0:00:14]} 66. Ra3 {[%clk 0:00:17.5]}
66... Re2 {[%clk 0:00:12.5]} 67. Rc3 {[%clk 0:00:17.8]} 67... Re3 {[%clk
0:00:12.9]} 68. Rxe3 {[%clk 0:00:13.3]} 68... fxe3 {[%clk 0:00:12.5]} 69. Kg2
{[%clk 0:00:12.8]} 69... Kf4 {[%clk 0:00:12.8]} 70. Kf1 {[%clk 0:00:13.4]} 70...
Kf3 {[%clk 0:00:13.2]} 71. Ke1 {[%clk 0:00:13.4]} 71... e2 {[%clk 0:00:13.6]}
0-1

[Event "Late-Titled-Tuesday-Blitz-February-13-2024"]
[Site "Chess.com"]
[Date "2024.02.13"]
[Round "7"]
[White "Nick12772"]
[Black "Dewarfd"]
[Result "1/2-1/2"]
[WhiteElo "2345"]
[BlackElo "2164"]
[TimeControl "180+1"]
[EndTime "15:19:04 PST"]
[Termination "Game drawn - insufficient material"]

1. Nf3 {[%clk 0:03:00.9]} 1... Nf6 {[%clk 0:02:58.3]} 2. g3 {[%clk 0:03:01.3]}
2... g6 {[%clk 0:02:54.4]} 3. Bg2 {[%clk 0:03:02.2]} 3... Bg7 {[%clk 0:02:54.7]}
4. O-O {[%clk 0:03:03.1]} 4... d5 {[%clk 0:02:52.8]} 5. c4 {[%clk 0:03:03.2]}
5... e6 {[%clk 0:02:49.3]} 6. cxd5 {[%clk 0:03:03.3]} 6... exd5 {[%clk
0:02:49.3]} 7. d4 {[%clk 0:03:04.2]} 7... O-O {[%clk 0:02:49.2]} 8. Nc3 {[%clk
0:03:04.2]} 8... c6 {[%clk 0:02:49.5]} 9. Bf4 {[%clk 0:03:04.2]} 9... Re8 {[%clk
0:02:47.2]} 10. Ne5 {[%clk 0:03:02.3]} 10... Nbd7 {[%clk 0:02:45]} 11. Nxd7
{[%clk 0:03:02.3]} 11... Bxd7 {[%clk 0:02:42.6]} 12. Be5 {[%clk 0:03:02.3]}
12... Bf5 {[%clk 0:02:42.1]} 13. Qb3 {[%clk 0:03:01.6]} 13... Qb6 {[%clk
0:02:41]} 14. e3 {[%clk 0:02:38.1]} 14... Qxb3 {[%clk 0:02:32.2]} 15. axb3
{[%clk 0:02:39]} 15... Ne4 {[%clk 0:02:32.1]} 16. Bxg7 {[%clk 0:02:34.9]} 16...
Kxg7 {[%clk 0:02:32]} 17. Nxe4 {[%clk 0:02:34.9]} 17... Bxe4 {[%clk 0:02:32.3]}
18. Bxe4 {[%clk 0:02:30.9]} 18... Rxe4 {[%clk 0:02:32.3]} 19. b4 {[%clk
0:02:30.4]} 19... a6 {[%clk 0:02:18.1]} 20. h4 {[%clk 0:02:25.3]} 20... Rae8
{[%clk 0:02:00.9]} 21. Rfc1 {[%clk 0:02:24.8]} 21... h6 {[%clk 0:01:53.2]} 22.
Kg2 {[%clk 0:02:24.4]} 22... g5 {[%clk 0:01:52.6]} 23. hxg5 {[%clk 0:02:24]}
23... hxg5 {[%clk 0:01:52.7]} 24. Rh1 {[%clk 0:02:24.6]} 24... Rh8 {[%clk
0:01:51.2]} 25. Rxh8 {[%clk 0:02:24.2]} 25... Kxh8 {[%clk 0:01:51.7]} 26. Rh1+
{[%clk 0:02:25]} 26... Kg7 {[%clk 0:01:52]} 27. Kf3 {[%clk 0:02:23.8]} 27... Re8
{[%clk 0:01:38.8]} 28. Kg4 {[%clk 0:02:19.3]} 28... Kg6 {[%clk 0:01:36.6]} 29.
Kf3 {[%clk 0:02:14.9]} 29... Ra8 {[%clk 0:01:31.7]} 30. Kg4 {[%clk 0:02:12.4]}
30... a5 {[%clk 0:01:28.8]} 31. Ra1 {[%clk 0:02:06.7]} 31... a4 {[%clk
0:01:18.2]} 32. Ra3 {[%clk 0:01:50.8]} 32... b5 {[%clk 0:01:17.7]} 33. Rc3
{[%clk 0:01:49.7]} 33... Ra6 {[%clk 0:01:17.4]} 34. Ra3 {[%clk 0:01:44.4]} 34...
f5+ {[%clk 0:01:14.7]} 35. Kf3 {[%clk 0:01:44.5]} 35... Ra7 {[%clk 0:01:09.9]}
36. Rc3 {[%clk 0:01:43.8]} 36... Rc7 {[%clk 0:01:06.3]} 37. Rc1 {[%clk
0:01:42.8]} 37... g4+ {[%clk 0:01:04.9]} 38. Kf4 {[%clk 0:01:29.4]} 38... Kf6
{[%clk 0:00:58.1]} 39. Rh1 {[%clk 0:01:21.5]} 39... Kg6 {[%clk 0:00:53.4]} 40.
Ke5 {[%clk 0:01:17.6]} 40... Rf7 {[%clk 0:00:31.2]} 41. Kd6 {[%clk 0:01:13.2]}
41... Rf6+ {[%clk 0:00:29.7]} 42. Kc7 {[%clk 0:01:13.8]} 42... f4 {[%clk
0:00:29.5]} 43. gxf4 {[%clk 0:01:10.3]} 43... Kf5 {[%clk 0:00:29.5]} 44. Rg1
{[%clk 0:00:53.2]} 44... Rg6 {[%clk 0:00:28.9]} 45. Rg3 {[%clk 0:00:49.3]} 45...
Ke4 {[%clk 0:00:22.8]} 46. Kd7 {[%clk 0:00:37.1]} 46... Kf5 {[%clk 0:00:19.3]}
47. f3 {[%clk 0:00:29.9]} 47... gxf3 {[%clk 0:00:18.7]} 48. Rxf3 {[%clk
0:00:30.8]} 48... Rg2 {[%clk 0:00:18.7]} 49. Kxc6 {[%clk 0:00:29.5]} 49... Rxb2
{[%clk 0:00:18.2]} 50. Kxb5 {[%clk 0:00:27.2]} 50... a3 {[%clk 0:00:18.2]} 51.
Rf1 {[%clk 0:00:26.6]} 51... a2 {[%clk 0:00:18.5]} 52. Ra1 {[%clk 0:00:27.2]}
52... Ke4 {[%clk 0:00:18.5]} 53. Kc5 {[%clk 0:00:25.2]} 53... Rc2+ {[%clk
0:00:16.5]} 54. Kd6 {[%clk 0:00:25.7]} 54... Rb2 {[%clk 0:00:15.7]} 55. b5
{[%clk 0:00:23.9]} 55... Rxb5 {[%clk 0:00:12.9]} 56. Rxa2 {[%clk 0:00:24.1]}
56... Kxe3 {[%clk 0:00:13.2]} 57. f5 {[%clk 0:00:23.3]} 57... Kxd4 {[%clk
0:00:13.1]} 58. f6 {[%clk 0:00:22.5]} 58... Rb6+ {[%clk 0:00:13.6]} 59. Ke7
{[%clk 0:00:22.3]} 59... Kc3 {[%clk 0:00:08.1]} 60. f7 {[%clk 0:00:18.3]} 60...
Rb7+ {[%clk 0:00:08.1]} 61. Ke6 {[%clk 0:00:18.9]} 61... Rxf7 {[%clk 0:00:07]}
62. Kxf7 {[%clk 0:00:18.1]} 62... d4 {[%clk 0:00:07.6]} 63. Ke6 {[%clk
0:00:18.3]} 63... d3 {[%clk 0:00:08.1]} 64. Ke5 {[%clk 0:00:18.8]} 64... d2
{[%clk 0:00:08.5]} 65. Ra1 {[%clk 0:00:18.9]} 65... Kc2 {[%clk 0:00:08.9]} 66.
Kd4 {[%clk 0:00:17.7]} 66... d1=Q+ {[%clk 0:00:09.2]} 67. Rxd1 {[%clk
0:00:18.5]} 67... Kxd1 {[%clk 0:00:09.5]} 1/2-1/2

[Event "Late-Titled-Tuesday-Blitz-February-13-2024"]
[Site "Chess.com"]
[Date "2024.02.13"]
[Round "7"]
[White "rhungaski"]
[Black "GMRAVEN_ON_YOUTUBE"]
[Result "1-0"]
[WhiteElo "2569"]
[BlackElo "2769"]
[TimeControl "180+1"]
[EndTime "15:19:11 PST"]
[Termination "rhungaski won on time"]

1. e4 {[%clk 0:03:00.8]} 1... c5 {[%clk 0:03:00]} 2. Nf3 {[%clk 0:03:00.3]} 2...
e6 {[%clk 0:03:00.6]} 3. d4 {[%clk 0:03:00.6]} 3... cxd4 {[%clk 0:03:01.5]} 4.
Nxd4 {[%clk 0:03:00.9]} 4... Nc6 {[%clk 0:03:02.4]} 5. Nb5 {[%clk 0:02:59.3]}
5... d6 {[%clk 0:03:00.2]} 6. c4 {[%clk 0:02:59.5]} 6... Nf6 {[%clk 0:02:59.9]}
7. N1c3 {[%clk 0:02:59.7]} 7... a6 {[%clk 0:03:00]} 8. Na3 {[%clk 0:02:59.9]}
8... Be7 {[%clk 0:03:00.7]} 9. Be2 {[%clk 0:03:00.2]} 9... O-O {[%clk
0:03:00.5]} 10. O-O {[%clk 0:03:00.4]} 10... b6 {[%clk 0:03:01.2]} 11. Bf4
{[%clk 0:03:00.5]} 11... Bb7 {[%clk 0:03:00.1]} 12. Re1 {[%clk 0:03:00.5]} 12...
Rc8 {[%clk 0:02:59.3]} 13. Bf1 {[%clk 0:03:00.1]} 13... Ne5 {[%clk 0:02:59.5]}
14. Rc1 {[%clk 0:02:58.5]} 14... Qc7 {[%clk 0:02:53.1]} 15. h3 {[%clk 0:02:58]}
15... Rfe8 {[%clk 0:02:45.5]} 16. Qd2 {[%clk 0:02:57.2]} 16... Qb8 {[%clk
0:02:43.1]} 17. Qe3 {[%clk 0:02:53]} 17... Ned7 {[%clk 0:02:35.8]} 18. Nab1
{[%clk 0:02:48.6]} 18... Qa8 {[%clk 0:02:34.1]} 19. Nd2 {[%clk 0:02:47.9]} 19...
d5 {[%clk 0:02:19.4]} 20. cxd5 {[%clk 0:02:31.6]} 20... exd5 {[%clk 0:02:19.5]}
21. e5 {[%clk 0:02:27.8]} 21... Bc5 {[%clk 0:02:19.1]} 22. Qd3 {[%clk
0:02:21.3]} 22... Nh5 {[%clk 0:01:04.3]} 23. Bh2 {[%clk 0:02:19.5]} 23... g6
{[%clk 0:01:00.3]} 24. Nf3 {[%clk 0:01:54.4]} 24... Ng7 {[%clk 0:00:56.6]} 25.
Nd4 {[%clk 0:01:48]} 25... Ne6 {[%clk 0:00:55.1]} 26. Nxe6 {[%clk 0:01:36.9]}
26... fxe6 {[%clk 0:00:49.1]} 27. a3 {[%clk 0:01:26]} 27... Rf8 {[%clk
0:00:46.8]} 28. Rc2 {[%clk 0:01:25.7]} 28... a5 {[%clk 0:00:41.7]} 29. Nb5
{[%clk 0:01:16.9]} 29... Ba6 {[%clk 0:00:40.8]} 30. a4 {[%clk 0:01:11.8]} 30...
Rf5 {[%clk 0:00:39.6]} 31. g4 {[%clk 0:01:08.4]} 31... Rf7 {[%clk 0:00:37.4]}
32. Bg3 {[%clk 0:01:08.1]} 32... Rcf8 {[%clk 0:00:36.8]} 33. Bg2 {[%clk
0:01:08]} 33... Nb8 {[%clk 0:00:27.3]} 34. Rec1 {[%clk 0:00:32.8]} 34... Nc6
{[%clk 0:00:24.9]} 35. Rxc5 {[%clk 0:00:32.4]} 35... bxc5 {[%clk 0:00:25.5]} 36.
Rxc5 {[%clk 0:00:32.3]} 36... Nb4 {[%clk 0:00:21.6]} 37. Qc3 {[%clk 0:00:31.7]}
37... Bxb5 {[%clk 0:00:15.6]} 38. axb5 {[%clk 0:00:31.2]} 38... Qb7 {[%clk
0:00:15.7]} 39. h4 {[%clk 0:00:25.9]} 39... Qb6 {[%clk 0:00:15.7]} 40. h5 {[%clk
0:00:25.2]} 40... gxh5 {[%clk 0:00:16.2]} 41. gxh5 {[%clk 0:00:25.4]} 41... Kh8
{[%clk 0:00:12]} 42. h6 {[%clk 0:00:17.4]} 42... Rd7 {[%clk 0:00:11.5]} 43. Rc8
{[%clk 0:00:16.9]} 43... Rdd8 {[%clk 0:00:10.7]} 44. Rxd8 {[%clk 0:00:16.8]}
44... Qxd8 {[%clk 0:00:11.6]} 45. Qd4 {[%clk 0:00:15.9]} 45... Qg5 {[%clk
0:00:06.6]} 46. Bh4 {[%clk 0:00:11.7]} 46... Qc1+ {[%clk 0:00:06.6]} 47. Bf1
{[%clk 0:00:11.4]} 47... Rg8+ {[%clk 0:00:05.1]} 48. Kh2 {[%clk 0:00:11.3]}
48... Qxh6 {[%clk 0:00:02]} 49. Bh3 {[%clk 0:00:10.6]} 49... Rg6 {[%clk
0:00:02]} 50. Bf6+ {[%clk 0:00:09.9]} 50... Rxf6 {[%clk 0:00:02.7]} 51. exf6
{[%clk 0:00:10]} 51... Kg8 {[%clk 0:00:03.2]} 52. b6 {[%clk 0:00:08.6]} 52...
Nc6 {[%clk 0:00:01.5]} 53. Qg4+ {[%clk 0:00:08.6]} 53... Kf7 {[%clk 0:00:01.9]}
54. Qxe6+ {[%clk 0:00:08.6]} 54... Kf8 {[%clk 0:00:02.5]} 55. Qd6+ {[%clk
0:00:06.1]} 55... Kf7 {[%clk 0:00:02.2]} 56. Qd7+ {[%clk 0:00:05.1]} 56... Kf8
{[%clk 0:00:01.7]} 57. Qxc6 {[%clk 0:00:05.4]} 57... Qf4+ {[%clk 0:00:01.6]} 58.
Kg2 {[%clk 0:00:05.7]} 58... Qe4+ {[%clk 0:00:02]} 59. Kg1 {[%clk 0:00:05.4]}
59... Qg6+ {[%clk 0:00:01.7]} 60. Bg2 {[%clk 0:00:05.4]} 60... Qb1+ {[%clk
0:00:02.3]} 61. Kh2 {[%clk 0:00:05.2]} 1-0

[Event "Late-Titled-Tuesday-Blitz-February-13-2024"]
[Site "Chess.com"]
[Date "2024.02.13"]
[Round "7"]
[White "Fjal"]
[Black "katharinareinecke"]
[Result "1-0"]
[WhiteElo "2242"]
[BlackElo "1953"]
[TimeControl "180+1"]
[EndTime "15:19:11 PST"]
[Termination "Fjal won on time"]

1. Nf3 {[%clk 0:02:55.7]} 1... d5 {[%clk 0:02:57.7]} 2. g3 {[%clk 0:02:56.6]}
2... g6 {[%clk 0:02:56.2]} 3. Bg2 {[%clk 0:02:57.2]} 3... Bg7 {[%clk 0:02:56.1]}
4. O-O {[%clk 0:02:58.1]} 4... c6 {[%clk 0:02:54.8]} 5. c4 {[%clk 0:02:58.5]}
5... e6 {[%clk 0:02:54.1]} 6. d4 {[%clk 0:02:53.6]} 6... Ne7 {[%clk 0:02:53.1]}
7. Nc3 {[%clk 0:02:54.2]} 7... O-O {[%clk 0:02:52.6]} 8. Bf4 {[%clk 0:02:54.5]}
8... a6 {[%clk 0:02:50.9]} 9. e3 {[%clk 0:02:54.8]} 9... b5 {[%clk 0:02:49.7]}
10. cxb5 {[%clk 0:02:49.2]} 10... cxb5 {[%clk 0:02:48.8]} 11. a4 {[%clk
0:02:47]} 11... b4 {[%clk 0:02:47.5]} 12. Ne2 {[%clk 0:02:42.3]} 12... Bd7
{[%clk 0:02:41.2]} 13. Nc1 {[%clk 0:02:41.3]} 13... Nbc6 {[%clk 0:02:27.7]} 14.
Nd3 {[%clk 0:02:41.5]} 14... Na5 {[%clk 0:02:24.9]} 15. Nxb4 {[%clk 0:02:37.1]}
15... Qb6 {[%clk 0:02:16.3]} 16. Nd3 {[%clk 0:02:35]} 16... Nec6 {[%clk
0:01:55.8]} 17. Nc5 {[%clk 0:02:34.8]} 17... Ra7 {[%clk 0:01:40.4]} 18. Qd3
{[%clk 0:02:19.6]} 18... Qxb2 {[%clk 0:01:28.5]} 19. Rfb1 {[%clk 0:02:18.5]}
19... Nb4 {[%clk 0:01:17.4]} 20. Rxb2 {[%clk 0:02:16.7]} 20... Nxd3 {[%clk
0:01:17]} 21. Nxd3 {[%clk 0:02:17.6]} 21... Nc4 {[%clk 0:01:13.4]} 22. Rb4
{[%clk 0:02:12.2]} 22... Rc8 {[%clk 0:01:08.5]} 23. Nc5 {[%clk 0:02:11.6]} 23...
Be8 {[%clk 0:01:01.9]} 24. Rab1 {[%clk 0:02:09.2]} 24... e5 {[%clk 0:00:55.9]}
25. Nxe5 {[%clk 0:02:08.4]} 25... Nxe5 {[%clk 0:00:55.1]} 26. dxe5 {[%clk
0:01:55.4]} 26... Rxc5 {[%clk 0:00:51.2]} 27. Rb8 {[%clk 0:01:54.3]} 27... Re7
{[%clk 0:00:41.8]} 28. Rd8 {[%clk 0:01:23.2]} 28... Bxe5 {[%clk 0:00:38.1]} 29.
Rbb8 {[%clk 0:01:14.8]} 29... Bxb8 {[%clk 0:00:36.8]} 30. Rxb8 {[%clk
0:01:13.6]} 30... Kg7 {[%clk 0:00:30.3]} 31. Bf3 {[%clk 0:00:56.5]} 31... Bxa4
{[%clk 0:00:27.9]} 32. Kg2 {[%clk 0:00:56.1]} 32... Rc2 {[%clk 0:00:20.1]} 33.
g4 {[%clk 0:00:52]} 33... Bb5 {[%clk 0:00:19.5]} 34. g5 {[%clk 0:00:49.5]} 34...
h6 {[%clk 0:00:15.5]} 35. Bd6 {[%clk 0:00:48.6]} 35... Rd7 {[%clk 0:00:14.5]}
36. Bf8+ {[%clk 0:00:48.6]} 36... Kh7 {[%clk 0:00:14.3]} 37. gxh6 {[%clk
0:00:48.1]} 37... Be2 {[%clk 0:00:11.2]} 38. Bg7 {[%clk 0:00:44.7]} 38... Bxf3+
{[%clk 0:00:11.1]} 39. Kxf3 {[%clk 0:00:45.3]} 39... g5 {[%clk 0:00:09]} 40.
Rh8+ {[%clk 0:00:39.4]} 40... Kg6 {[%clk 0:00:09.2]} 41. Rg8 {[%clk 0:00:37.6]}
41... Kh7 {[%clk 0:00:08.2]} 42. Rh8+ {[%clk 0:00:37.3]} 42... Kg6 {[%clk
0:00:08.3]} 43. Kg3 {[%clk 0:00:32.3]} 43... f5 {[%clk 0:00:08.2]} 44. Rf8
{[%clk 0:00:29.1]} 44... Rxg7 {[%clk 0:00:08.1]} 45. hxg7 {[%clk 0:00:28.5]}
45... Kxg7 {[%clk 0:00:08.7]} 46. Rxf5 {[%clk 0:00:29.4]} 46... Rd2 {[%clk
0:00:06.8]} 47. Rxg5+ {[%clk 0:00:28.1]} 47... Kf6 {[%clk 0:00:07.3]} 48. Rg8
{[%clk 0:00:28]} 48... a5 {[%clk 0:00:07.2]} 49. Ra8 {[%clk 0:00:28.6]} 49...
Ra2 {[%clk 0:00:06.6]} 50. h4 {[%clk 0:00:26.3]} 50... a4 {[%clk 0:00:06.9]} 51.
f3 {[%clk 0:00:25.4]} 51... a3 {[%clk 0:00:06.8]} 52. Kf4 {[%clk 0:00:25.6]}
52... Kg6 {[%clk 0:00:05]} 53. Kg3 {[%clk 0:00:15.1]} 53... Kh5 {[%clk
0:00:05.2]} 54. Ra5 {[%clk 0:00:15]} 54... Kg6 {[%clk 0:00:04.5]} 55. Rxd5
{[%clk 0:00:14.8]} 55... Rb2 {[%clk 0:00:04.9]} 56. Ra5 {[%clk 0:00:15.1]} 56...
a2 {[%clk 0:00:05.1]} 57. h5+ {[%clk 0:00:15.1]} 57... Kh6 {[%clk 0:00:05]} 58.
Kf4 {[%clk 0:00:15.6]} 58... Rc2 {[%clk 0:00:05.1]} 59. e4 {[%clk 0:00:16]}
59... Rh2 {[%clk 0:00:05.1]} 60. Ke3 {[%clk 0:00:15.2]} 60... Rxh5 {[%clk
0:00:03.5]} 61. Rxa2 {[%clk 0:00:14.9]} 61... Rh3 {[%clk 0:00:03.2]} 62. Rg2
{[%clk 0:00:15.2]} 62... Kh7 {[%clk 0:00:02.6]} 63. e5 {[%clk 0:00:15.7]} 63...
Rh5 {[%clk 0:00:01.9]} 64. Ke4 {[%clk 0:00:15.8]} 64... Rh4+ {[%clk 0:00:01.8]}
65. f4 {[%clk 0:00:16.2]} 65... Rh5 {[%clk 0:00:02.3]} 66. e6 {[%clk 0:00:16.5]}
66... Rh6 {[%clk 0:00:02.4]} 67. Ke5 {[%clk 0:00:16.6]} 67... Kh8 {[%clk
0:00:02.7]} 68. f5 {[%clk 0:00:17.2]} 68... Rh3 {[%clk 0:00:02.3]} 69. e7 {[%clk
0:00:16]} 69... Re3+ {[%clk 0:00:02.2]} 70. Kf6 {[%clk 0:00:16.7]} 1-0